fUST/lending_fUST_20251029
["ID","MTS","AMOUNT","RATE_DAILY","PERIOD"]
[392567907,1761679858687,-500.0,0.00021917,2]
[392567908,1761679858699,-500.43013956,0.00021917,2]
[392567909,1761679858709,-500.0,0.00021917,2]
[392567910,1761679858719,-500.0,0.00021917,2]
[392567911,1761679858728,-500.0,0.00021917,2]
[392567912,1761679858739,-500.0,0.00021917,2]
[392567913,1761679858748,-500.0,0.00021917,2]
[392567914,1761679858758,-500.0,0.00021917,2]
[392567915,1761679858768,-500.0,0.00021917,2]
[392567916,1761679858778,-500.0,0.00021917,2]
[392567917,1761679858787,-500.0,0.00021917,2]
[392567918,1761679858797,-500.0,0.00021917,2]
[392567919,1761679858807,-283.51004135,0.00021917,2]
[392567920,1761679858817,-5331.46,0.00021917,2]
[392567921,1761679858828,-500.0,0.00021917,2]
[392567922,1761679858838,-500.0,0.00021917,2]
[392567923,1761679858848,-500.0,0.00021917,2]
[392567924,1761679858858,-500.0,0.00021917,2]
[392567925,1761679858868,-500.0,0.00021917,2]
[392567926,1761679858877,-584.04626249,0.00021917,2]
[392567927,1761679858888,-500.0,0.00021917,2]
[392567928,1761679858898,-500.0,0.00021917,2]
[392567929,1761679858907,-500.0,0.00021917,2]
[392567930,1761679858917,-500.0,0.00021917,2]
[392567931,1761679858928,-556.52,0.00021917,2]
[392567932,1761679858938,-500.0,0.00021917,2]
[392567933,1761679858948,-500.0,0.00021917,2]
[392567934,1761679858957,-500.0,0.00021917,2]
[392567935,1761679858967,-500.0,0.00021917,2]
[392567936,1761679858980,-500.0,0.00021917,2]
[392567937,1761679858990,-529.94,0.00021917,2]
[392567938,1761679858999,-500.0,0.00021917,2]
[392567939,1761679859009,-500.0,0.00021917,2]
[392567940,1761679859021,-500.0,0.00021917,2]
[392567941,1761679859033,-500.0,0.00021917,2]
[392567942,1761679859043,-500.0,0.00021917,2]
[392567943,1761679859052,-513.96,0.00021917,2]
[392567944,1761679859062,-554.21,0.00021917,2]
[392567945,1761679859072,-500.0,0.00021917,2]
[392567946,1761679859082,-2952.31,0.00021917,2]
[392567947,1761679859091,-500.0,0.00021917,2]
[392567948,1761679859102,-390.06468523,0.00021917,2]
[392567949,1761679859113,-1021.36,0.00021917,2]
[392567950,1761679859122,-500.0,0.00021917,2]
[392567951,1761679859132,-500.0,0.00021917,2]
[392567952,1761679859142,-511.46,0.00021917,2]
[392567953,1761679859152,-463.81100627,0.00021917,2]
[392567954,1761679859162,-628.82,0.00021917,2]
[392567955,1761679859172,-500.0,0.00021917,2]
[392567956,1761679859182,-500.0,0.00021917,2]
[392567957,1761679859192,-517.50666019,0.00021917,2]
[392567958,1761679859203,-500.0,0.00021917,2]
[392567959,1761679859212,-535.24,0.00021917,2]
[392567960,1761679859222,-519.63,0.00021917,2]
[392567961,1761679859232,-1185.92,0.00021917,2]
[392567962,1761679859344,-490.92464383,0.00021917,2]
[392567963,1761679859355,-500.0,0.00021917,2]
[392567964,1761679859364,-500.0,0.00021917,2]
[392567965,1761679859374,-500.0,0.00021917,2]
[392567966,1761679859384,-527.78370219,0.00021917,2]
[392567967,1761679859393,-590.09,0.00021917,2]
[392567968,1761679859403,-1075.3,0.00021917,2]
[392567969,1761679859412,-500.0,0.00021917,2]
[392567970,1761679859421,-667.5,0.00021917,2]
[392567971,1761679859431,-500.0,0.00021917,2]
[392567972,1761679859440,-500.0,0.00021917,2]
[392567973,1761679859449,-559.96648976,0.00021917,2]
[392567974,1761679859459,-500.0,0.00021917,2]
[392567975,1761679859471,-500.0,0.00021917,2]
[392567976,1761679859480,-500.0,0.00021917,2]
[392567977,1761679859490,-500.0,0.00021917,2]
[392567978,1761679859499,-1147.08,0.00021917,2]
[392567979,1761679859508,-606.25,0.00021917,2]
[392567980,1761679859518,-1152.79,0.00021917,2]
[392567981,1761679859527,-500.0,0.00021917,2]
[392567982,1761679859536,-500.0,0.00021917,2]
[392567983,1761679859545,-1046.61,0.00021917,2]
[392567984,1761679859556,-500.0,0.00021917,2]
[392567985,1761679859566,-500.0,0.00021917,2]
[392567986,1761679859575,-500.0,0.00021917,2]
[392567987,1761679859586,-518.14,0.00021917,2]
[392567988,1761679859596,-565.45,0.00021917,2]
[392567989,1761679859607,-704.16,0.00021917,2]
[392567990,1761679859617,-500.0,0.00021917,2]
[392567991,1761679859627,-500.0,0.00021917,2]
[392567992,1761679859635,-500.0,0.00021917,2]
[392567993,1761679859644,-500.0,0.00021917,2]
[392567994,1761679859653,-728.73,0.00021917,2]
[392567995,1761679859663,-500.0,0.00021917,2]
[392567996,1761679859672,-500.0,0.00021917,2]
[392567997,1761679859681,-1273.64,0.00021917,2]
[392567998,1761679859692,-889.15,0.00021917,2]
[392567999,1761679859703,-603.28,0.00021917,2]
[392568000,1761679859712,-500.0,0.00021917,2]
[392568001,1761679859724,-922.09,0.00021917,2]
[392568002,1761679859734,-942.82,0.00021917,2]
[392568003,1761679859743,-489.50390959,0.00021917,2]
[392568004,1761679859752,-1184.05,0.00021917,2]
[392568005,1761679859761,-1330.23,0.00021917,2]
[392568006,1761679859770,-500.0,0.00021917,2]
[392568007,1761679859779,-500.0,0.00021917,2]
[392568008,1761679859788,-654.8,0.00021917,2]
[392568009,1761679859797,-626.25,0.00021917,2]
[392568010,1761679859806,-500.0,0.00021917,2]
[392568011,1761679859815,-500.0,0.00021917,2]
[392568012,1761679859824,-500.0,0.00021917,2]
[392568013,1761679859834,-500.0,0.00021917,2]
[392568014,1761679859844,-500.0,0.00021917,2]
[392568015,1761679859853,-500.0,0.00021917,2]
[392568016,1761679859862,-751.78,0.00021917,2]
[392568017,1761679859873,-500.0,0.00021917,2]
[392568018,1761679859884,-823.66,0.00021917,2]
[392568019,1761679859893,-500.0,0.00021917,2]
[392568020,1761679859903,-500.0,0.00021917,2]
[392568021,1761679859913,-500.0,0.00021917,2]
[392568022,1761679859922,-500.0,0.00021917,2]
[392568023,1761679859932,-500.0,0.00021917,2]
[392568024,1761679859941,-500.0,0.00021917,2]
[392568025,1761679859951,-500.0,0.00021917,2]
[392568026,1761679859960,-500.0,0.00021917,2]
[392568027,1761679859969,-1964.99,0.00021917,2]
[392568028,1761679859979,-500.0,0.00021917,2]
[392568029,1761679859988,-922.55,0.00021917,2]
[392568030,1761679859997,-500.0,0.00021917,2]
[392568031,1761679860006,-500.0,0.00021917,2]
[392568032,1761679860015,-500.0,0.00021917,2]
[392568033,1761679860024,-834.6,0.00021917,2]
[392568034,1761679860034,-886.65,0.00021917,2]
[392568035,1761679860043,-500.0,0.00021917,2]
[392568036,1761679860052,-1658.18,0.00021917,2]
[392568037,1761679860062,-500.0,0.00021917,2]
[392568038,1761679860071,-500.0,0.00021917,2]
[392568039,1761679860080,-500.0,0.00021917,2]
[392568040,1761679860090,-500.0,0.00021917,2]
[392568041,1761679860100,-500.0,0.00021917,2]
[392568042,1761679860110,-500.0,0.00021917,2]
[392568043,1761679860119,-520.48,0.00021917,2]
[392568044,1761679860129,-500.0,0.00021917,2]
[392568045,1761679860138,-500.0,0.00021917,2]
[392568046,1761679860148,-607.62,0.00021917,2]
[392568047,1761679860158,-500.0,0.00021917,2]
[392568048,1761679860167,-927.54,0.00021917,2]
[392568049,1761679860177,-500.0,0.00021917,2]
[392568050,1761679860187,-500.0,0.00021917,2]
[392568051,1761679860197,-500.0,0.00021917,2]
[392568052,1761679860207,-500.0,0.00021917,2]
[392568053,1761679860217,-500.0,0.00021917,2]
[392568054,1761679860226,-500.0,0.00021917,2]
[392568055,1761679860235,-742.77,0.00021917,2]
[392568056,1761679860245,-480.56085877,0.00021917,2]
[392568057,1761679860254,-500.0,0.00021917,2]
[392568058,1761679860263,-514.18,0.00021917,2]
[392568059,1761679860273,-517.32,0.00021917,2]
[392568060,1761679860282,-1076.34,0.00021917,2]
[392568061,1761679860291,-500.0,0.00021917,2]
[392568062,1761679860300,-500.0,0.00021917,2]
[392568063,1761679860310,-559.71,0.00021917,2]
[392568064,1761679860319,-651.18,0.00021917,2]
[392568065,1761679860329,-500.0,0.00021917,2]
[392568066,1761679860338,-500.0,0.00021917,2]
[392568067,1761679860347,-500.0,0.00021917,2]
[392568068,1761679860356,-601.44,0.00021917,2]
[392568069,1761679860365,-1303.71,0.00021917,2]
[392568070,1761679860374,-500.0,0.00021917,2]
[392568071,1761679860383,-500.0,0.00021917,2]
[392568072,1761679860393,-500.0,0.00021917,2]
[392568073,1761679860403,-851.89,0.00021917,2]
[392568074,1761679860412,-500.0,0.00021917,2]
[392568075,1761679860421,-500.0,0.00021917,2]
[392568076,1761679860431,-500.0,0.00021917,2]
[392568077,1761679860440,-500.0,0.00021917,2]
[392568078,1761679860450,-1451.24,0.00021917,2]
[392568079,1761679860460,-500.0,0.00021917,2]
[392568080,1761679860474,-500.0,0.00021917,2]
[392568081,1761679860484,-500.0,0.00021917,2]
[392568082,1761679860493,-500.0,0.00021917,2]
[392568083,1761679860503,-789.58,0.00021917,2]
[392568084,1761679860513,-1395.94,0.00021917,2]
[392568085,1761679860522,-738.02,0.00021917,2]
[392568086,1761679860531,-1422.48,0.00021917,2]
[392568087,1761679860543,-500.0,0.00021917,2]
[392568088,1761679860553,-500.0,0.00021917,2]
[392568089,1761679860563,-500.0,0.00021917,2]
[392568090,1761679860573,-533.82,0.00021917,2]
[392568091,1761679860583,-500.0,0.00021917,2]
[392568092,1761679860592,-500.0,0.00021917,2]
[392568093,1761679860601,-500.0,0.00021917,2]
[392568094,1761679860611,-500.0,0.00021917,2]
[392568095,1761679860621,-1872.71,0.00021917,2]
[392568096,1761679860631,-1785.18,0.00021917,2]
[392568097,1761679860640,-19733.49,0.00021917,2]
[392568098,1761679860649,-539.66,0.00021917,2]
[392568099,1761679860658,-500.0,0.00021917,2]
[392568100,1761679860667,-500.0,0.00021917,2]
[392568101,1761679860676,-500.0,0.00021917,2]
[392568102,1761679860686,-1049.25,0.00021917,2]
[392568103,1761679860696,-500.0,0.00021917,2]
[392568104,1761679860704,-500.0,0.00021917,2]
[392568105,1761679860713,-167.94330441,0.00021917,2]
[392568106,1761679860723,-1000.0,0.00021917,2]
[392568107,1761679860733,-1003.02,0.00021917,2]
[392568108,1761679860743,-500.0,0.00021917,2]
[392568109,1761679860752,-185.87750948,0.00021917,2]
[392568110,1761679860761,-500.0,0.00021917,2]
[392568111,1761679860770,-616.05,0.00021917,2]
[392568112,1761679860779,-986.7,0.00021917,2]
[392568113,1761679860788,-500.0,0.00021917,2]
[392568114,1761679860797,-790.17,0.00021917,2]
[392568115,1761679860807,-501.59,0.00021917,2]
[392568116,1761679860816,-500.0,0.00021917,2]
[392568117,1761679860825,-500.0,0.00021917,2]
[392568118,1761679860834,-1120.17,0.00021917,2]
[392568119,1761679860843,-830.18,0.00021917,2]
[392568120,1761679860851,-2392.29,0.00021917,2]
[392568121,1761679860860,-1454.82,0.00021917,2]
[392568122,1761679860869,-691.61,0.00021917,2]
[392568123,1761679860878,-500.0,0.00021917,2]
[392568124,1761679860887,-500.0,0.00021917,2]
[392568125,1761679860897,-500.0,0.00021917,2]
[392568126,1761679860906,-500.0,0.00021917,2]
[392568127,1761679860915,-612.19,0.00021917,2]
[392568128,1761679860924,-500.0,0.00021917,2]
[392568129,1761679860933,-500.0,0.00021917,2]
[392568130,1761679860943,-500.0,0.00021917,2]
[392568131,1761679860952,-2194.02,0.00021917,2]
[392568132,1761679860962,-500.0,0.00021917,2]
[392568133,1761679860971,-500.0,0.00021917,2]
[392568134,1761679860980,-875.78,0.00021917,2]
[392568135,1761679860990,-500.0,0.00021917,2]
[392568136,1761679861000,-481.20507263,0.00021917,2]
[392568137,1761679861009,-607.16,0.00021917,2]
[392568138,1761679861018,-500.0,0.00021917,2]
[392568139,1761679861028,-1069.94,0.00021917,2]
[392568140,1761679861037,-500.0,0.00021917,2]
[392568141,1761679861046,-1727.8,0.00021917,2]
[392568142,1761679861055,-558.85593709,0.00021917,2]
[392568143,1761679861064,-500.0,0.00021917,2]
[392568144,1761679861073,-500.0,0.00021917,2]
[392568145,1761679861082,-501.58,0.00021917,2]
[392568146,1761679861091,-3506.08,0.00021917,2]
[392568147,1761679861100,-500.0,0.00021917,2]
[392568148,1761679861109,-1415.81,0.00021917,2]
[392568149,1761679861119,-500.0,0.00021917,2]
[392568150,1761679861128,-500.0,0.00021917,2]
[392568151,1761679861137,-1836.5,0.00021917,2]
[392568152,1761679861146,-1431.52,0.00021917,2]
[392568153,1761679861155,-500.0,0.00021917,2]
[392568154,1761679861165,-500.0,0.00021917,2]
[392568155,1761679861174,-780.16,0.00021917,2]
[392568156,1761679861183,-556.59,0.00021917,2]
[392568157,1761679861192,-500.0,0.00021917,2]
[392568158,1761679861202,-218.55854868,0.00021917,2]
[392568159,1761679861210,-1305.43,0.00021917,2]
[392568160,1761679861219,-500.0,0.00021917,2]
[392568161,1761679861228,-500.0,0.00021917,2]
[392568162,1761679861245,-500.0,0.00021917,2]
[392568163,1761679861254,-807.18,0.00021917,2]
[392568164,1761679861264,-500.0,0.00021917,2]
[392568165,1761679861274,-500.0,0.00021917,2]
[392568166,1761679861285,-2000.05,0.00021917,2]
[392568167,1761679861294,-500.0,0.00021917,2]
[392568168,1761679861304,-1620.44,0.00021917,2]
[392568169,1761679861315,-2572.64,0.00021917,2]
[392568170,1761679861326,-500.0,0.00021917,2]
[392568171,1761679861335,-680.28,0.00021917,2]
[392568172,1761679861344,-2196.34,0.00021917,2]
[392568173,1761679861353,-500.0,0.00021917,2]
[392568174,1761679861363,-500.0,0.00021917,2]
[392568175,1761679861372,-1301.99,0.00021917,2]
[392568176,1761679861381,-500.0,0.00021917,2]
[392568177,1761679861390,-500.0,0.00021917,2]
[392568178,1761679861399,-500.0,0.00021917,2]
[392568179,1761679861408,-807.26,0.00021917,2]
[392568180,1761679861418,-595.64,0.00021917,2]
[392568181,1761679861427,-1337.78,0.00021917,2]
[392568182,1761679861436,-500.0,0.00021917,2]
[392568183,1761679861445,-500.0,0.00021917,2]
[392568184,1761679861455,-500.0,0.00021917,2]
[392568185,1761679861468,-500.0,0.00021917,2]
[392568186,1761679861477,-500.0,0.00021917,2]
[392568187,1761679861487,-2058.44,0.00021917,2]
[392568188,1761679861498,-970.8,0.00021917,2]
[392568189,1761679861507,-1432.62,0.00021917,2]
[392568190,1761679861516,-682.32,0.00021917,2]
[392568191,1761679861526,-733.85,0.00021917,2]
[392568192,1761679861538,-314.86271788,0.00021917,2]
[392568193,1761679861549,-1594.25,0.00021917,2]
[392568194,1761679861559,-500.0,0.00021917,2]
[392568195,1761679861568,-500.0,0.00021917,2]
[392568196,1761679861578,-500.0,0.00021917,2]
[392568197,1761679861589,-1644.59,0.00021917,2]
[392568198,1761679861600,-500.0,0.00021917,2]
[392568199,1761679861611,-500.0,0.00021917,2]
[392568200,1761679861622,-7766.23,0.00021917,2]
[392568201,1761679861632,-500.0,0.00021917,2]
[392568202,1761679861642,-3062.02,0.00021917,2]
[392568203,1761679861652,-500.0,0.00021917,2]
[392568204,1761679861662,-500.0,0.00021917,2]
[392568205,1761679861671,-500.0,0.00021917,2]
[392568206,1761679861681,-500.0,0.00021917,2]
[392568207,1761679861691,-1235.3,0.00021917,2]
[392568208,1761679861701,-690.17,0.00021917,2]
[392568209,1761679861711,-1189.76,0.00021917,2]
[392568210,1761679861721,-500.0,0.00021917,2]
[392568211,1761679861731,-500.0,0.00021917,2]
[392568212,1761679861740,-267.58862565,0.00021917,2]
[392568213,1761679861750,-4955.2,0.00021917,2]
[392568214,1761679861759,-500.0,0.00021917,2]
[392568215,1761679861769,-500.0,0.00021917,2]
[392568216,1761679861779,-596.38,0.00021917,2]
[392568217,1761679861789,-1250.77,0.00021917,2]
[392568218,1761679861799,-1863.84,0.00021917,2]
[392568219,1761679861808,-500.0,0.00021917,2]
[392568220,1761679861818,-2480.61,0.00021917,2]
[392568221,1761679861827,-1549.96,0.00021917,2]
[392568222,1761679861837,-500.0,0.00021917,2]
[392568223,1761679861847,-502.8,0.00021917,2]
[392568224,1761679861856,-500.0,0.00021917,2]
[392568225,1761679861866,-500.0,0.00021917,2]
[392568226,1761679861876,-500.0,0.00021917,2]
[392568227,1761679861885,-500.0,0.00021917,2]
[392568228,1761679861895,-500.0,0.00021917,2]
[392568229,1761679861904,-803.94,0.00021917,2]
[392568230,1761679861915,-654.12,0.00021917,2]
[392568231,1761679861924,-500.0,0.00021917,2]
[392568232,1761679861935,-469.39078597,0.00021917,2]
[392568233,1761679861945,-687.1,0.00021917,2]
[392568234,1761679861955,-896.2,0.00021917,2]
[392568235,1761679861965,-818.08,0.00021917,2]
[392568236,1761679861974,-628.14,0.00021917,2]
[392568237,1761679861984,-500.0,0.00021917,2]
[392568238,1761679861993,-600.75338958,0.00021917,2]
[392568239,1761679862003,-500.0,0.00021917,2]
[392568240,1761679862012,-509.97,0.00021917,2]
[392568241,1761679862022,-1343.44,0.00021917,2]
[392568242,1761679862032,-500.0,0.00021917,2]
[392568243,1761679862041,-700.51,0.00021917,2]
[392568244,1761679862051,-1736.51,0.00021917,2]
[392568245,1761679862062,-2007.69,0.00021917,2]
[392568246,1761679862071,-500.0,0.00021917,2]
[392568247,1761679862081,-500.0,0.00021917,2]
[392568248,1761679862091,-500.0,0.00021917,2]
[392568249,1761679862100,-173.1263272,0.00021917,2]
[392568250,1761679862110,-500.0,0.00021917,2]
[392568251,1761679862120,-665.49,0.00021917,2]
[392568252,1761679862130,-750.08,0.00021917,2]
[392568253,1761679862141,-500.0,0.00021917,2]
[392568254,1761679862150,-501.59065501,0.00021917,2]
[392568255,1761679862159,-1403.86,0.00021917,2]
[392568256,1761679862170,-500.0,0.00021917,2]
[392568257,1761679862179,-1926.72,0.00021917,2]
[392568258,1761679862190,-500.0,0.00021917,2]
[392568259,1761679862199,-500.0,0.00021917,2]
[392568260,1761679862209,-500.52218492,0.00021917,2]
[392568261,1761679862219,-1021.6,0.00021917,2]
[392568262,1761679862229,-620.31,0.00021917,2]
[392568263,1761679862239,-2695.02,0.00021917,2]
[392568264,1761679862249,-482.75699534,0.00021917,2]
[392568265,1761679862259,-500.0,0.00021917,2]
[392568266,1761679862269,-500.0,0.00021917,2]
[392568267,1761679862279,-500.0,0.00021917,2]
[392568268,1761679862289,-500.0,0.00021917,2]
[392568269,1761679862299,-2759.59,0.00021917,2]
[392568270,1761679862309,-500.0,0.00021917,2]
[392568271,1761679862320,-500.0,0.00021917,2]
[392568272,1761679862330,-741.82,0.00021917,2]
[392568273,1761679862339,-500.0,0.00021917,2]
[392568274,1761679862349,-562.58,0.00021917,2]
[392568275,1761679862358,-500.0,0.00021917,2]
[392568276,1761679862368,-500.0,0.00021917,2]
[392568277,1761679862378,-1578.97,0.00021917,2]
[392568278,1761679862388,-500.0,0.00021917,2]
[392568279,1761679862397,-4245.83,0.00021917,2]
[392568280,1761679862407,-1100.87,0.00021917,2]
[392568281,1761679862417,-500.0,0.00021917,2]
[392568282,1761679862427,-511.77,0.00021917,2]
[392568283,1761679862437,-1991.9,0.00021917,2]
[392568284,1761679862447,-500.0,0.00021917,2]
[392568285,1761679862457,-556.06,0.00021917,2]
[392568286,1761679862470,-595.65583211,0.00021917,2]
[392568287,1761679862480,-1924.01,0.00021917,2]
[392568288,1761679862489,-164.22952978,0.00021917,2]
[392568289,1761679862499,-588.00816768,0.00021917,2]
[392568290,1761679862511,-500.0,0.00021917,2]
[392568291,1761679862520,-1641.68,0.00021917,2]
[392568292,1761679862530,-489.58498522,0.00021917,2]
[392568293,1761679862540,-500.0,0.00021917,2]
[392568294,1761679862550,-2083.33,0.00021917,2]
[392568295,1761679862560,-2320.9,0.00021917,2]
[392568296,1761679862570,-500.0,0.00021917,2]
[392568297,1761679862580,-510.72,0.00021917,2]
[392568298,1761679862590,-500.0,0.00021917,2]
[392568299,1761679862601,-704.59,0.00021917,2]
[392568300,1761679862611,-500.0,0.00021917,2]
[392568301,1761679862623,-3153.99,0.00021917,2]
[392568302,1761679862633,-500.0,0.00021917,2]
[392568303,1761679862643,-500.0,0.00021917,2]
[392568304,1761679862652,-500.0,0.00021917,2]
[392568305,1761679862663,-500.0,0.00021917,2]
[392568306,1761679862673,-866.27,0.00021917,2]
[392568307,1761679862684,-500.0,0.00021917,2]
[392568308,1761679862694,-500.0,0.00021917,2]
[392568309,1761679862704,-500.0,0.00021917,2]
[392568310,1761679862713,-500.0,0.00021917,2]
[392568311,1761679862723,-500.0,0.00021917,2]
[392568312,1761679862734,-500.0,0.00021917,2]
[392568313,1761679862744,-1161.9,0.00021917,2]
[392568314,1761679862755,-500.0,0.00021917,2]
[392568315,1761679862764,-500.0,0.00021917,2]
[392568316,1761679862774,-500.0,0.00021917,2]
[392568317,1761679862784,-1398.77,0.00021917,2]
[392568318,1761679862794,-500.0,0.00021917,2]
[392568319,1761679862804,-984.12,0.00021917,2]
[392568320,1761679862813,-965.05,0.00021917,2]
[392568321,1761679862823,-500.0,0.00021917,2]
[392568322,1761679862834,-587.46,0.00021917,2]
[392568323,1761679862844,-500.0,0.00021917,2]
[392568324,1761679862854,-648.56,0.00021917,2]
[392568325,1761679862864,-500.0,0.00021917,2]
[392568326,1761679862874,-500.0,0.00021917,2]
[392568327,1761679862884,-1216.93,0.00021917,2]
[392568328,1761679862894,-500.0,0.00021917,2]
[392568329,1761679862906,-503.55,0.00021917,2]
[392568330,1761679862916,-500.0,0.00021917,2]
[392568331,1761679862926,-438.28888458,0.00021917,2]
[392568332,1761679862936,-1248.99,0.00021917,2]
[392568333,1761679862948,-1256.61,0.00021917,2]
[392568334,1761679862959,-1375.89,0.00021917,2]
[392568335,1761679862969,-500.0,0.00021917,2]
[392568336,1761679862980,-766.95,0.00021917,2]
[392568337,1761679862989,-153.0,0.00021918,2]
[392568338,1761679862999,-153.0,0.00021918,2]
[392568339,1761679863009,-153.0,0.00021918,2]
[392568340,1761679863019,-153.0,0.00021918,2]
[392568341,1761679863028,-153.0,0.00021918,2]
[392568342,1761679863038,-153.0,0.00021918,2]
[392568343,1761679863048,-153.0,0.00021918,2]
[392568344,1761679863057,-153.0,0.00021918,2]
[392568345,1761679863067,-153.0,0.00021918,2]
[392568346,1761679863077,-153.0,0.00021918,2]
[392568347,1761679863086,-500.0,0.00021918,2]
[392568348,1761679863096,-500.0,0.00021918,2]
[392568349,1761679863106,-190.73882,0.00021919,10]
[392568350,1761679863117,-153.357758,0.00021919,10]
[392568351,1761679863126,-660.0,0.00021952,2]
[392568352,1761679863136,-267.86269002,0.00022,2]
[392568353,1761679863149,-161.0,0.00022,4]
[392568354,1761679863159,-161.0,0.00022,4]
[392568355,1761679863168,-158.74,0.00022,2]
[392568356,1761679863178,-2000.0,0.00022,2]
[392568357,1761679863188,-49505.82,0.00022,7]
[392568358,1761679863197,-1730.3116175,0.00022,5]
[392568359,1761679863207,-60080.55204283,0.00022,2]
[392568360,1761679863217,-9553.08516387,0.00022,2]
[392568361,1761679863227,-190.73882,0.00022,10]
[392568362,1761679863237,-153.357758,0.00022,10]
[392568363,1761679863247,-5828.96485799,0.00022091,2]
[392568364,1761679863256,-233.8,0.00022094,2]
[392568365,1761679863266,-2000.0,0.000221,2]
[392568366,1761679863275,-864.0,0.00022127,20]
[392568367,1761679863285,-500.0,0.00022173,2]
[392568368,1761679863295,-343.07229229,0.00022173,2]
[392568369,1761679863305,-500.0,0.00022173,2]
[392568370,1761679863315,-500.0,0.00022173,2]
[392568371,1761679863325,-500.0,0.00022173,2]
[392568372,1761679863335,-500.0,0.00022173,2]
[392568373,1761679863344,-500.22516108,0.00022173,2]
[392568374,1761679863354,-500.0,0.00022173,2]
[392568375,1761679863364,-500.0,0.00022173,2]
[392568376,1761679863374,-500.0,0.00022173,2]
[392568377,1761679863384,-500.0,0.00022173,2]
[392568378,1761679863395,-500.0,0.00022173,2]
[392568379,1761679863405,-500.0,0.00022173,2]
[392568380,1761679863415,-500.0,0.00022173,2]
[392568381,1761679863426,-265.83404629,0.00022173,2]
[392568382,1761679863436,-500.41739767,0.00022173,2]
[392568383,1761679863445,-500.242094,0.00022173,2]
[392568384,1761679863455,-500.0,0.00022173,2]
[392568385,1761679863466,-500.0,0.00022173,2]
[392568386,1761679863478,-500.13509937,0.00022173,2]
[392568387,1761679863489,-500.0,0.00022173,2]
[392568388,1761679863499,-500.0,0.00022173,2]
[392568389,1761679863510,-500.50130928,0.00022173,2]
[392568390,1761679863520,-435.32949454,0.00022173,2]
[392568391,1761679863530,-500.13355916,0.00022173,2]
[392568392,1761679863540,-500.0,0.00022173,2]
[392568393,1761679863550,-500.0,0.00022173,2]
[392568394,1761679863563,-500.0,0.00022173,2]
[392568395,1761679863573,-158.72321284,0.00022173,2]
[392568396,1761679863584,-500.0,0.00022173,2]
[392568397,1761679863595,-500.0,0.00022173,2]
[392568398,1761679863604,-563.89998582,0.00022173,2]
[392568399,1761679863615,-500.0,0.00022173,2]
[392568400,1761679863626,-500.0,0.00022173,2]
[392568401,1761679863636,-500.0,0.00022173,2]
[392568402,1761679863646,-500.0,0.00022173,2]
[392568403,1761679863657,-500.0,0.00022173,2]
[392568404,1761679863850,-500.0,0.00022173,2]
[392568405,1761679863861,-500.0,0.00022173,2]
[392568406,1761679863872,-500.0,0.00022173,2]